bitfinex/quotes_ETHUSD_20250711
["timestamp","ask_amount","ask_price","bid_price","bid_amount"]
[1752241047840,0.55,2996.5,2995.6,0.03338229]
[1752241048048,6.3544,2997.8,2995.8,9.58396276]
[1752241048385,0.7504,2997.8,2996.5,0.4542]
[1752241048526,0.7504,2997.8,2996.8,0.001]
[1752241048733,0.7504,2997.8,2997.7,0.1664]
[1752241049975,1.3004,2997.8,2997.7,0.1664]
[1752241050269,4.63617957,2997.8,2997.7,0.1664]
[1752241050436,0.55,2996.9,2996.8,0.001]
[1752241050854,0.55,2996.9,2996.8,0.1674]
[1752241051225,0.002,2997.9,2997.1,3.33651358]
[1752241051428,0.002,2997.9,2996.8,0.001]
[1752241051657,0.002,2997.9,2996.8,3.33781419]
[1752241051961,3.33770738,2997.9,2996.9,0.33378142]
[1752241052146,3.33625654,2997.4,2996.8,0.001]
[1752241052457,0.55,2997.3,2996.8,0.001]
[1752241052664,0.55,2997.6,2996.8,0.001]
[1752241053023,0.55,2997.4,2996.8,0.001]
[1752241053225,3.88629686,2997.4,2996.8,0.001]
[1752241053657,0.55,2997.2,2996.8,0.001]
[1752241053987,0.7614,2996.9,2996.8,0.001]
[1752241054264,1.3114,2996.9,2996.8,0.001]
[1752241054760,0.55,2996.9,2996.8,3.33789268]
[1752241054928,5.598,2997.6,2996.8,0.33478927]
[1752241055130,0.002,2999.1,2996.9,0.03336781]
[1752241055131,0.7614,2998.0,2996.9,0.03336781]
[1752241055325,0.7614,2998.0,2996.8,0.4552]
[1752241055326,0.7614,2998.0,2997.3,3.33626315]
[1752241055526,0.7614,2998.0,2996.8,0.4552]
[1752241055730,0.002,2999.1,2996.8,0.4552]
[1752241055731,0.7954,2998.8,2997.9,3.3356683]
[1752241055937,0.002,2999.1,2998.4,3.33504184]
[1752241056175,0.002,2999.1,2998.9,3.33454554]
[1752241056492,0.002,2999.1,2998.8,3.36800193]
[1752241056643,0.002,2999.1,2998.0,0.37898683]
[1752241056844,0.002,2999.1,2997.8,0.4542]
[1752241057157,4.10278724,2998.7,2997.8,0.4542]
[1752241057346,0.55,2998.0,2997.2,0.4542]
[1752241057546,3.33554574,2998.1,2997.2,0.4542]
[1752241057547,0.55,2997.8,2997.2,0.37907521]
[1752241057772,0.55,2997.8,2996.8,0.4552]
[1752241057982,3.33518649,2998.4,2997.4,3.33616108]
[1752241058181,0.55,2998.3,2997.5,3.336094]
[1752241058340,0.55,2998.3,2997.3,3.33631421]
[1752241058341,3.88532719,2998.3,2997.3,3.33631421]
[1752241058696,0.55,2998.1,2997.4,0.03336224]
[1752241058874,0.55,2998.2,2997.3,3.33623821]
[1752241059080,0.55,2998.0,2997.1,3.33646137]
[1752241059277,0.55,2998.0,2997.2,0.33364614]
[1752241059476,0.55,2998.0,2997.2,3.67008614]
[1752241059769,0.55,2998.2,2997.3,3.33633338]
[1752241060082,0.8094,2998.5,2997.8,3.33570853]
[1752241060280,0.55,2998.4,2997.9,0.03335668]
[1752241060578,0.8094,2998.5,2998.1,3.3354296]
[1752241060779,0.8038,2998.9,2998.2,3.3353111]
[1752241060947,5.605,2999.1,2998.4,3.33504928]
[1752241061265,5.605,2999.1,2998.8,0.1664]
[1752241061485,5.605,2999.1,2999.0,0.1664]
[1752241061871,0.002,2999.1,2999.0,0.1664]
[1752241062245,0.002,2999.1,2999.0,3.50084481]
[1752241062445,0.002,2999.1,2999.0,4.21772948]
[1752241063476,0.002,2999.1,2999.0,0.1664]
[1752241063841,0.552,2999.1,2999.0,0.1664]
[1752241064281,0.552,2999.1,2997.6,0.4542]
[1752241064484,0.552,2999.1,2997.1,9.58396276]
[1752241064485,0.55,2998.9,2997.7,0.0333589]
[1752241064656,0.8145,2998.2,2997.3,0.03336336]
[1752241064856,0.55,2998.1,2997.1,0.4542]
[1752241065055,0.55,2998.1,2997.1,3.79072434]
[1752241065276,0.55,2998.1,2997.9,0.1664]
[1752241065464,0.55,2998.1,2996.8,0.001]
[1752241065659,0.8092,2998.7,2998.0,0.1664]
[1752241066069,0.55,2998.6,2997.8,0.4542]
[1752241066271,0.002,2999.1,2998.5,0.1664]
[1752241066697,0.002,2999.1,2999.0,0.1664]
[1752241067200,0.002,2999.1,2997.8,0.4542]
[1752241067399,0.552,2999.1,2999.0,0.1664]
[1752241067894,3.88633363,2999.1,2999.0,0.1664]
[1752241068097,0.55,2998.6,2997.7,3.33588254]
[1752241068296,3.88479192,2998.7,2998.5,0.1664]
[1752241068508,0.55,2998.7,2998.5,0.1664]
[1752241068813,0.55,2998.9,2998.5,0.1664]
[1752241068973,0.55,2998.8,2997.9,3.33564396]
[1752241069175,0.55,2998.6,2997.9,0.3335644]
[1752241069379,0.55,2998.6,2998.0,0.03335557]
[1752241069585,0.55,2998.9,2998.5,0.1664]
[1752241069909,8.97351069,2999.0,2998.5,0.1664]
[1752241070112,8.97351069,2999.0,2998.8,0.1664]
[1752241070113,0.55,2998.9,2998.8,0.1664]
[1752241070461,3.884556,2998.9,2998.8,0.1664]
[1752241071801,0.55,2998.9,2998.8,0.1664]
[1752241071988,0.55,2998.9,2997.4,0.4542]
[1752241072188,0.55,2998.9,2998.5,0.1664]
[1752241072502,0.1684,2999.1,2998.5,0.1664]
[1752241072503,3.88488961,2998.6,2998.5,0.1664]
[1752241072703,4.67608961,2998.6,2998.5,0.1664]
[1752241073271,0.55,2998.2,2998.1,0.1664]
[1752241073498,9.51033453,2998.2,2998.1,0.1664]
[1752241073829,6.175,2998.2,2998.1,0.1664]
[1752241073968,5.625,2998.2,2998.1,0.1664]
[1752241074568,6.175,2998.2,2998.1,0.1664]
[1752241078018,5.625,2998.2,2997.8,0.4542]
[1752241078616,5.625,2998.2,2997.9,3.3355773]
[1752241078818,5.625,2998.2,2998.0,3.7145131]
[1752241078984,5.625,2998.2,2998.1,3.33544578]
[1752241079309,5.625,2998.2,2998.0,0.37897773]
[1752241079506,5.625,2998.2,2997.8,0.4542]
[1752241079716,0.55,2998.1,2997.0,0.4542]
[1752241079887,0.55,2998.1,2997.1,3.33652177]
[1752241080081,0.55,2998.1,2997.3,3.33633603]
[1752241080406,0.55,2998.1,2997.2,0.03336447]
[1752241080407,5.625,2998.2,2997.5,3.33600852]
[1752241080613,5.625,2998.2,2997.6,0.33360085]
[1752241080908,5.625,2998.2,2997.9,0.4542]
[1752241081117,5.625,2998.2,2997.0,0.4542]
[1752241081329,0.55,2997.8,2997.0,3.79080156]
[1752241081625,0.55,2997.3,2996.8,0.001]
[1752241081774,0.55,2997.1,2996.8,0.001]
[1752241083879,11.215,2997.2,2996.9,3.33678134]
[1752241084214,11.215,2997.2,2997.0,0.33377813]
[1752241084506,0.55,2997.1,2996.8,0.001]
[1752241084874,11.191,2997.3,2996.8,0.001]
[1752241085076,0.55,2997.6,2997.0,3.33665678]
[1752241085388,0.55,2997.6,2997.1,3.33655867]
[1752241085584,0.55,2997.6,2996.8,0.001]
[1752241085981,11.191,2997.7,2996.8,0.03436892]
[1752241086188,11.191,2997.7,2997.3,3.33622791]
[1752241086385,11.191,2997.7,2997.4,3.3361578]
[1752241086599,11.191,2997.7,2996.9,0.4542]
[1752241086600,11.191,2997.7,2997.3,3.336306]
[1752241086795,11.191,2997.7,2997.0,0.37920433]
[1752241086976,0.55,2997.6,2997.0,3.71580946]
[1752241087186,0.55,2997.6,2997.0,0.37920433]
[1752241087391,0.55,2997.4,2996.8,0.001]
[1752241087592,0.55,2997.2,2996.8,0.001]
[1752241088017,0.55,2997.2,2997.1,0.1664]
[1752241090505,4.68194735,2997.2,2997.1,0.1664]
[1752241090726,3.88678134,2996.9,2996.8,0.001]
[1752241091023,16.00768134,2996.9,2996.8,0.001]
[1752241091322,4.64144952,2996.3,2996.2,0.001]
[1752241091544,3.88811796,2995.7,2995.6,0.001]
[1752241091715,15.81411796,2995.7,2995.6,0.001]
[1752241092421,15.06011796,2995.7,2995.6,0.1674]
[1752241092920,15.84761796,2995.7,2995.6,0.001]
[1752241093492,1.3094,2994.9,2993.7,3.3402402]
[1752241093828,0.55,2994.7,2994.1,0.5616]
[1752241094121,11.214,2994.6,2994.4,0.001]
[1752241094323,0.55,2994.5,2994.4,0.001]
[1752241094525,0.55,2994.5,2994.4,0.1674]
[1752241095091,1.3371,2994.5,2994.4,0.1674]
[1752241095699,4.67655566,2994.5,2994.4,0.1674]
[1752241096034,1.3371,2994.5,2994.4,0.1674]
[1752241096426,4.67655566,2994.5,2994.4,0.1674]
[1752241096828,4.67655566,2994.5,2994.4,0.001]
[1752241097335,11.206,2994.5,2994.4,0.001]
[1752241098116,15.09545566,2994.5,2994.4,0.001]
[1752241098308,15.85455566,2994.5,2994.4,0.001]
[1752241098736,12.5151,2994.5,2994.4,0.001]
[1752241099135,15.85455566,2994.5,2994.4,0.001]
[1752241100040,12.5271,2994.5,2994.4,0.001]
[1752241100244,15.86655566,2994.5,2994.4,0.001]
[1752241101551,12.5271,2994.5,2994.4,0.001]
[1752241101929,15.86655566,2994.5,2994.4,0.001]
[1752241102129,12.5271,2994.5,2994.4,0.001]
[1752241102741,15.86655566,2994.5,2994.4,0.001]
[1752241103260,1.3688,2993.4,2993.3,0.002]
[1752241103443,12.5848,2993.4,2993.3,0.002]
[1752241104036,15.92548283,2993.4,2993.3,0.002]
[1752241105954,15.92548283,2993.4,2993.3,1e-08]
[1752241106334,3.89202259,2992.2,2992.1,0.002]
[1752241106542,11.749,2992.2,2992.1,0.002]
[1752241106938,11.208,2992.2,2992.1,0.002]
[1752241107344,0.7503,2992.8,2992.1,0.1684]
[1752241107552,0.55,2992.6,2992.2,0.59502022]
[1752241107857,11.201,2992.5,2992.3,3.34186499]
[1752241108053,11.201,2992.5,2992.2,0.5616]
[1752241108224,11.751,2992.5,2992.4,0.1664]
[1752241108420,15.09268755,2992.5,2992.4,0.1664]
[1752241108657,0.55,2992.2,2992.1,0.002]
[1752241108849,15.09902259,2992.2,2992.1,0.1684]
[1752241109245,15.09902259,2992.2,2992.1,0.002]
[1752241110325,15.09902259,2992.2,2991.5,0.002]
[1752241110326,4.66139287,2991.6,2991.5,0.002]
[1752241110563,15.85739287,2991.6,2991.5,0.002]
[1752241111562,0.55,2990.5,2990.4,0.002]
[1752241111770,0.55,2990.5,2988.9,0.002]
[1752241111771,0.7944,2990.4,2988.9,0.002]
[1752241111935,0.55,2990.2,2988.9,0.002]
[1752241112135,11.237,2990.1,2988.9,0.002]
[1752241112346,0.55,2989.8,2988.9,0.002]
[1752241112531,11.237,2989.7,2988.9,0.03545712]
[1752241112737,11.237,2989.7,2989.5,3.34493182]
[1752241112942,0.7944,2990.4,2989.7,3.3448172]
[1752241113179,11.785,2990.3,2989.6,0.33449318]
[1752241113358,11.785,2990.3,2989.0,3.90720053]
[1752241113673,11.235,2990.3,2989.1,0.03345488]
[1752241113972,11.235,2990.3,2989.0,0.5616]
[1752241114152,11.235,2990.3,2989.5,3.34496856]
[1752241114346,11.235,2990.3,2989.6,3.67938827]
[1752241114748,11.235,2990.3,2989.9,3.34452837]
[1752241114939,11.235,2990.3,2990.2,3.3442579]
[1752241115270,11.235,2990.3,2989.7,3.3448172]
[1752241115445,11.235,2990.3,2989.6,0.33449686]
[1752241115646,11.235,2990.3,2990.2,3.3442579]
[1752241115847,11.235,2990.3,2989.9,0.5616]
[1752241115848,11.235,2990.3,2989.9,3.90618256]
[1752241116075,11.235,2990.3,2989.9,0.5616]
[1752241116276,11.235,2990.3,2990.2,3.3442579]
[1752241116676,11.235,2990.3,2989.0,0.5616]
[1752241116876,11.235,2990.3,2989.7,3.34481242]
[1752241117078,11.235,2990.3,2989.1,0.33475811]
[1752241117079,11.235,2990.3,2989.6,3.34489333]
[1752241117381,11.235,2990.3,2988.9,0.002]
[1752241117382,0.55,2989.6,2988.9,0.002]
[1752241117550,0.55,2989.4,2988.9,0.002]
[1752241117755,14.59132509,2989.3,2988.9,0.002]
[1752241117942,0.55,2989.2,2988.9,0.002]
[1752241118142,1.66081106,2992.4,2988.9,0.002]
[1752241118143,11.243,2989.1,2988.9,0.002]
[1752241118373,11.243,2989.1,2989.0,3.34560053]
[1752241118875,11.243,2989.1,2989.0,4.01494125]
[1752241119481,0.7875,2990.1,2989.0,4.01494125]
[1752241119482,0.55,2990.0,2989.0,0.66934072]
[1752241119786,5.615,2990.0,2989.8,3.34462609]
[1752241119993,5.615,2990.0,2989.9,3.34459346]
[1752241120357,5.616,2990.1,2989.9,0.1672]
[1752241120560,5.614,2990.0,2989.9,0.1672]
[1752241120874,5.614,2990.0,2989.1,0.5616]
[1752241121073,5.614,2990.0,2989.2,3.34537668]
[1752241121240,6.164,2990.0,2989.9,0.1672]
[1752241121562,4.69769346,2989.9,2989.8,0.1672]
[1752241121764,1.3531,2989.9,2988.9,0.002]
[1752241122080,0.55,2989.6,2989.3,0.1672]
[1752241122256,3.89560053,2989.0,2988.9,0.002]
[1752241122444,6.173,2989.0,2988.9,0.002]
[1752241122645,0.55,2989.0,2988.9,0.002]
[1752241122844,5.624,2989.0,2988.9,0.002]
[1752241124146,0.8053,2989.9,2988.9,3.34763625]
[1752241124341,5.624,2989.8,2989.0,0.33476363]
[1752241124777,0.7929,2990.5,2989.1,0.03345488]
[1752241125047,5.623,2990.4,2989.6,3.34487857]
[1752241125245,3.34427165,2990.2,2989.3,0.5616]
[1752241125463,5.623,2990.4,2989.6,3.34486279]
[1752241125668,5.623,2990.4,2988.9,0.002]
[1752241126519,0.55,2989.7,2988.9,0.002]
[1752241126682,5.624,2989.6,2989.0,0.39093608]
[1752241126886,0.55,2989.5,2988.9,0.002]
[1752241127270,0.55,2990.5,2989.2,3.3453442]
[1752241127512,8.96709056,2990.4,2989.4,3.34508667]
[1752241127717,5.623,2990.4,2989.5,3.3450061]
[1752241128001,5.623,2990.4,2989.4,0.33450867]
[1752241128173,5.623,2990.4,2988.9,0.002]
[1752241128513,0.55,2990.0,2988.9,0.002]
[1752241128667,5.62,2989.9,2989.3,3.34520678]
[1752241128874,3.34420024,2990.3,2988.9,3.34764692]
[1752241128875,5.622,2990.3,2988.9,3.34764692]
[1752241129073,3.89444952,2990.1,2989.1,3.34540269]
[1752241129269,0.55,2990.1,2989.5,3.34497859]
[1752241129515,0.55,2990.2,2989.6,3.34491973]
[1752241129817,0.55,2990.2,2989.2,0.5616]
[1752241130000,0.55,2990.2,2989.2,3.90695049]
[1752241130189,0.55,2990.2,2988.9,0.002]
[1752241130372,0.55,2990.0,2989.1,3.34542025]
[1752241130567,0.55,2989.8,2988.9,0.002]
[1752241130769,0.55,2989.6,2988.9,3.3476462]
[1752241130971,3.34550745,2989.1,2988.9,0.002]
[1752241131300,0.55,2989.6,2988.9,0.002]
[1752241131301,5.616,2989.0,2988.9,0.002]
[1752241131483,6.168,2989.0,2988.9,0.002]
[1752241131689,10.27010053,2989.0,2988.9,0.002]
[1752241132286,10.27010053,2989.0,2988.1,0.1672]
[1752241132287,4.65305341,2988.2,2988.1,0.1672]
[1752241132473,4.65305341,2988.2,2987.8,0.1672]
[1752241132474,3.34668902,2988.1,2987.8,0.1672]
[1752241132668,0.55,2988.1,2987.8,0.1672]
[1752241132876,3.89694423,2987.8,2986.8,0.5636]
[1752241133079,3.89694423,2987.8,2986.4,8.5856]
[1752241133080,9.51394423,2987.8,2986.4,8.5856]
[1752241133305,9.51394423,2987.8,2986.4,11.93401708]
[1752241133622,10.28824423,2987.8,2986.4,0.5636]
[1752241133913,10.28824423,2987.8,2986.4,3.9455569]
[1752241134115,10.28824423,2987.8,2986.5,3.34839459]
[1752241134274,10.28824423,2987.8,2986.4,0.5636]
[1752241134477,10.28824423,2987.8,2986.1,3.34883816]
[1752241134781,3.89803589,2986.9,2986.0,0.5636]
[1752241134982,3.89803589,2986.9,2985.8,3.34914621]
[1752241134983,0.55,2986.7,2985.8,3.34914621]
[1752241135189,8.96106818,2986.8,2985.8,3.34914621]
[1752241135190,5.613,2986.8,2985.9,0.03349073]
[1752241135531,0.55,2986.7,2985.8,3.34907941]
[1752241135711,0.55,2986.7,2985.9,3.34899963]
[1752241136009,5.613,2986.8,2985.3,0.18840166]
[1752241136010,3.89872943,2986.3,2985.3,0.18840166]
[1752241136209,4.13322892,2986.4,2985.4,0.03349634]
[1752241136210,5.616,2986.4,2985.4,0.03349634]
[1752241136373,5.616,2986.4,2985.6,3.3494105]
[1752241136579,5.616,2986.4,2985.5,3.70660454]
[1752241136910,0.7847,2986.2,2985.3,0.18840166]
[1752241137085,0.55,2986.1,2985.3,0.18840166]
[1752241137285,0.55,2985.7,2985.3,0.18840166]
[1752241137509,0.55,2985.7,2984.8,3.35028005]
[1752241137711,0.55,2985.9,2984.9,0.335028]
[1752241137877,0.55,2985.9,2984.5,0.5656]
[1752241138297,3.89909556,2985.9,2984.5,0.5656]
[1752241138508,0.55,2985.4,2984.5,0.5656]
[1752241138681,0.55,2985.4,2984.1,0.5656]
[1752241138682,3.34980542,2985.3,2984.1,0.5656]
[1752241138883,3.34980542,2985.3,2984.3,0.002]
[1752241138884,0.55,2985.3,2984.3,0.002]
[1752241139084,3.899776,2985.3,2984.3,0.002]
[1752241139412,0.55,2985.3,2984.3,0.002]
[1752241139594,0.55,2985.3,2984.4,3.35067252]
[1752241139791,0.55,2985.3,2984.3,0.002]
[1752241139991,6.4179,2985.4,2984.3,0.002]
[1752241139992,3.35019598,2984.9,2984.3,0.002]
[1752241140214,3.90044439,2984.7,2984.3,0.002]
[1752241140509,1.363,2984.4,2984.3,0.002]
[1752241140678,6.981,2984.4,2984.3,0.002]
[1752241141212,1.3168,2983.9,2983.8,0.002]
[1752241141419,6.9458,2983.9,2983.8,0.002]
[1752241141614,10.29711874,2983.9,2983.8,0.002]
[1752241142543,0.55,2982.8,2982.6,0.002]
[1752241142832,5.631,2983.0,2982.6,0.002]
[1752241143035,4.16386704,2982.7,2982.6,0.002]
[1752241143324,4.71386704,2982.7,2982.6,0.002]
[1752241143521,0.55,2982.2,2980.8,0.5696]
[1752241143688,0.55,2982.0,2979.6,3.35604267]
[1752241143880,0.55,2982.0,2978.1,0.17463976]
[1752241143881,0.55,2981.5,2980.1,0.5696]
[1752241144080,0.55,2981.4,2980.1,3.92510462]
[1752241144387,3.90446647,2981.1,2980.4,0.1672]
[1752241144885,6.222,2981.1,2979.1,3.35663529]
[1752241145086,0.55,2981.1,2980.8,0.1672]
[1752241145288,6.4812,2981.8,2980.1,0.5696]
[1752241145512,0.55,2981.7,2980.5,3.35509924]
[1752241145783,3.35186286,2983.5,2980.2,0.03355479]
[1752241145784,0.8112,2983.2,2981.1,0.5696]
[1752241145987,3.3525448,2982.9,2981.8,3.35362202]
[1752241146192,5.676,2983.1,2981.9,0.03353566]
[1752241146400,5.676,2983.1,2982.2,3.35322032]
[1752241146698,0.7871,2983.7,2982.3,0.03353116]
[1752241146887,5.675,2983.4,2982.0,3.35345405]
[1752241147087,8.8221,2984.5,2982.5,0.5696]
[1752241147293,8.8221,2984.5,2983.1,3.35210795]
[1752241147518,3.3516014,2983.7,2982.7,3.35259195]
[1752241147715,0.7567,2983.6,2981.9,0.5696]
[1752241147915,0.7567,2983.6,2981.9,3.92306075]
[1752241147916,3.35240081,2983.0,2981.9,3.92306075]
[1752241148115,6.233,2982.9,2981.9,0.5696]
[1752241148315,0.55,2982.6,2981.4,0.5696]
[1752241148626,3.90223592,2983.1,2982.1,3.35325582]
[1752241148830,3.90223592,2983.1,2981.4,0.5696]
[1752241148831,0.55,2983.1,2981.4,0.5696]
[1752241149013,0.8279,2982.8,2981.4,0.5696]
[1752241149325,6.243,2982.7,2981.3,3.35423578]
[1752241149533,0.55,2982.3,2981.4,3.35410511]
[1752241149703,0.55,2982.3,2981.0,1.3755]
[1752241149704,0.55,2982.0,2981.0,4.73001115]
[1752241149900,0.55,2981.7,2981.0,0.002]
[1752241150099,1.3779,2981.1,2981.0,0.002]
[1752241150299,0.8279,2981.1,2981.0,0.002]
[1752241150501,1.3779,2981.1,2981.0,0.002]
[1752241150700,4.73236647,2981.1,2981.0,0.002]
[1752241150899,1.3779,2981.1,2981.0,0.002]
[1752241151326,4.73236647,2981.1,2981.0,0.002]
[1752241151516,1.3779,2981.1,2981.0,0.002]
[1752241151713,3.35372197,2981.8,2981.0,0.002]
[1752241151714,0.7979,2981.8,2981.0,0.002]
[1752241151898,6.5089,2981.8,2981.0,0.002]
[1752241152325,0.55,2981.7,2981.0,0.002]
[1752241152829,3.90404262,2981.5,2981.0,0.002]
[1752241153035,3.35446647,2981.1,2981.0,0.002]
[1752241153195,9.61546647,2981.1,2981.0,0.002]
[1752241153397,6.261,2981.1,2981.0,0.002]
[1752241153731,3.90431264,2981.3,2981.0,0.002]
[1752241153900,3.90426858,2981.3,2981.0,0.002]
[1752241154102,4.71826647,2981.1,2981.0,0.002]
[1752241154493,10.42626647,2981.1,2981.0,0.002]
[1752241154693,7.0718,2981.1,2981.0,0.002]
[1752241154921,10.42626647,2981.1,2981.0,0.002]
[1752241155232,6.258,2981.1,2981.0,0.002]
[1752241155527,6.258,2981.1,2981.0,0.1692]
[1752241155528,5.708,2981.1,2981.0,0.1692]
[1752241155734,5.708,2981.1,2981.0,0.002]
[1752241155735,9.61246647,2981.1,2981.0,0.002]
[1752241155889,6.265,2981.1,2981.0,0.002]
[1752241156919,0.7937,2982.7,2981.0,0.002]
[1752241157095,3.35317788,2982.3,2982.0,0.1672]
[1752241157426,0.55,2982.0,2981.6,0.1672]
[1752241157796,3.90410341,2981.5,2981.0,0.002]
[1752241158007,0.55,2981.3,2981.0,0.002]
[1752241158440,5.729,2981.4,2981.0,0.002]
[1752241158597,5.729,2981.4,2981.2,0.1672]
[1752241158794,5.729,2981.4,2981.3,0.1672]
[1752241159154,0.1672,2981.9,2981.3,3.52144143]
[1752241159328,0.7937,2982.0,2981.0,0.002]
[1752241159329,6.5177,2982.0,2981.0,0.002]
[1752241159632,5.724,2982.0,2981.6,0.1672]
[1752241160050,5.724,2982.0,2981.8,0.1672]
[1752241160941,6.5014,2982.4,2981.7,3.35375741]
[1752241161240,0.55,2982.3,2981.9,0.1672]
[1752241161600,0.001,2982.6,2982.3,3.35301922]
[1752241161795,0.001,2982.6,2982.2,0.1672]
[1752241161996,0.001,2982.6,2982.2,3.35318082]
[1752241162199,0.001,2982.6,2982.5,0.1672]
[1752241162638,0.001,2982.6,2981.3,0.5696]
[1752241162950,0.1682,2982.6,2981.9,0.1672]
[1752241163153,0.55,2982.1,2981.9,0.1672]
[1752241163469,6.269,2982.1,2981.0,0.002]
[1752241163613,0.55,2981.8,2981.4,0.1672]
[1752241164253,3.35395125,2981.6,2981.4,0.1672]
[1752241164415,3.3544308,2981.2,2981.1,0.1672]
[1752241164616,4.69846647,2981.1,2981.0,0.002]
[1752241164861,7.063,2981.1,2981.0,0.002]
[1752241165228,1.344,2981.1,2981.0,0.002]
[1752241165428,6.278,2981.1,2981.0,0.002]
[1752241165758,5.727,2981.5,2981.0,0.002]
[1752241165957,5.727,2981.5,2981.0,0.1692]
[1752241166451,0.55,2981.4,2981.0,0.1692]
[1752241166863,0.794,2982.3,2981.1,0.5696]
[1752241167075,5.723,2982.2,2981.7,0.1672]
[1752241167845,0.55,2981.8,2981.1,3.35445334]
[1752241168156,0.55,2981.8,2981.4,0.1672]
[1752241168357,0.1672,2981.9,2981.4,0.1672]
[1752241168544,0.55,2981.8,2981.4,0.1672]
[1752241168736,0.1672,2981.9,2981.4,0.1672]
[1752241168944,0.55,2982.1,2981.6,3.35389379]
[1752241169140,0.7172,2982.1,2981.6,0.1672]
[1752241169336,0.55,2982.1,2981.7,0.1672]
[1752241169821,0.55,2982.1,2981.7,3.52091954]
[1752241170021,5.723,2982.2,2981.7,0.1672]
[1752241170356,0.55,2982.1,2981.7,3.52094843]
[1752241170569,0.001,2982.6,2981.7,0.92169484]
[1752241170757,0.001,2982.6,2982.0,0.1672]
[1752241171077,0.001,2982.6,2982.5,0.1672]
[1752241171279,0.1672,2982.9,2982.5,4.08969186]
[1752241171462,5.10370518,2984.6,2981.8,3.35365525]
[1752241171463,1.68927052,2984.7,2982.7,0.5696]
[1752241171784,0.49688502,2984.6,2983.7,3.35154338]
[1752241171931,0.49688502,2984.5,2983.7,4.59146316]
[1752241172128,0.31055314,2984.4,2983.7,4.59146316]
[1752241172451,0.31055314,2984.3,2983.7,4.59146316]
[1752241172651,0.31055314,2984.2,2983.7,4.59146316]
[1752241172840,5.741,2984.6,2983.7,1.23991978]
[1752241173045,5.741,2984.6,2984.5,3.35064499]
[1752241173233,6.5359,2985.2,2984.4,3.35070184]
[1752241173440,1.0272601,2985.1,2984.4,3.35070184]
[1752241173645,0.71593344,2985.1,2984.4,4.02087763]
[1752241173882,1.16876069,2985.7,2984.5,3.38411886]
[1752241173883,6.514,2985.6,2984.5,3.38411886]
[1752241174079,0.31110738,2985.5,2984.6,0.5696]
[1752241174369,6.514,2985.6,2984.7,3.35042047]
[1752241174538,3.34968243,2985.4,2983.9,3.35131874]
[1752241174738,6.514,2985.6,2984.0,0.39209187]
[1752241174739,3.3500615,2985.1,2984.0,0.39209187]
[1752241174934,0.55,2984.9,2984.2,3.35097926]
[1752241175142,5.738,2985.0,2983.8,0.5696]
[1752241175484,5.736,2985.5,2984.0,3.35114174]
[1752241175650,5.736,2985.5,2984.0,3.35119495]
[1752241175651,3.34974709,2985.3,2984.0,3.35119495]
[1752241175981,0.55,2985.1,2984.4,3.35071889]
[1752241176330,0.55,2985.2,2983.8,0.5696]
[1752241176529,5.738,2985.3,2983.9,3.35131874]
[1752241176768,5.738,2985.3,2984.5,3.35064195]
[1752241176945,5.738,2985.3,2984.0,0.42560393]
[1752241177143,4.51653446,2987.1,2985.0,3.35000689]
[1752241177144,11.39410727,2985.9,2985.0,3.35000689]
[1752241177348,5.738,2985.8,2984.7,0.5696]
[1752241177736,8.045,2985.9,2984.8,0.03350308]
[1752241177934,8.045,2985.9,2984.7,0.5696]
[1752241178136,8.04,2987.1,2984.8,0.03350308]
[1752241178367,3.34837383,2986.6,2985.7,3.3492795]
[1752241178577,3.34837383,2986.6,2985.0,3.35008375]
[1752241178578,0.18642149,2987.0,2985.2,0.03349859]
[1752241178739,8.04,2987.1,2985.3,0.60309747]
[1752241178740,5.735,2986.7,2985.3,0.60309747]
[1752241179070,3.53466742,2986.6,2985.3,0.5696]
[1752241179267,0.18628816,2986.5,2985.4,3.34963488]
[1752241179470,5.735,2986.7,2985.5,0.42541871]
[1752241179657,5.735,2986.7,2985.3,0.5696]
[1752241179858,0.7534,2986.6,2985.3,0.5696]
[1752241180060,0.7534,2986.6,2985.9,3.34901039]
[1752241180260,0.55,2986.5,2986.0,3.34893897]
[1752241180438,0.7534,2986.6,2985.3,0.5696]
[1752241180635,3.34846991,2986.5,2985.3,0.5696]
[1752241180885,0.55,2986.5,2985.5,3.3494592]
[1752241181044,0.55,2986.3,2985.5,3.3494592]
[1752241181243,0.7534,2986.6,2985.3,0.5696]
[1752241181552,5.724,2986.5,2986.2,0.1672]
[1752241182738,0.55,2986.3,2985.3,0.5696]
[1752241182941,0.55,2986.3,2986.0,0.1672]
[1752241183240,9.23961046,2986.5,2986.0,0.1672]
[1752241183241,3.89853085,2986.4,2986.0,0.1672]
[1752241183440,0.55,2986.2,2986.0,0.1672]
[1752241183886,0.55,2986.4,2986.0,0.1672]
[1752241184040,5.71,2986.3,2986.1,0.1672]
[1752241184243,0.55,2986.2,2986.1,0.1672]
[1752241184448,5.71,2986.3,2986.1,3.51598955]
[1752241184646,5.71,2986.3,2986.1,0.1672]
[1752241185152,3.34808209,2987.7,2986.1,0.1672]
[1752241185153,0.7853,2987.6,2986.1,0.5696]